bitfinex/quotes_BTCUSD_20251007
["timestamp","ask_amount","ask_price","bid_price","bid_amount"]
[1759804097565,0.00118993,124540.0,124530.0,0.47540387]
[1759804098145,0.00118993,124540.0,124530.0,0.47640387]
[1759804098323,0.00118993,124540.0,124530.0,0.47811387]
[1759804098749,0.00218993,124540.0,124530.0,0.47811387]
[1759804099909,0.00218993,124540.0,124530.0,0.56123593]
[1759804100107,0.00218993,124540.0,124530.0,0.58532926]
[1759804100540,0.00218993,124540.0,124530.0,0.58732926]
[1759804100754,0.00118993,124540.0,124530.0,0.58732926]
[1759804101001,0.00118993,124540.0,124530.0,0.58832926]
[1759804101202,0.00118993,124540.0,124530.0,0.66322375]
[1759804107786,0.00118993,124540.0,124530.0,0.57966375]
[1759804107991,0.00118993,124540.0,124530.0,0.66310375]
[1759804110754,0.00118993,124540.0,124530.0,0.41462782]
[1759804111092,0.00118993,124540.0,124530.0,0.57523169]
[1759804118692,0.00118993,124540.0,124530.0,0.26259169]
[1759804118895,0.00118993,124540.0,124530.0,0.5002172]
[1759804126265,0.00302,124570.0,124540.0,0.00802954]
[1759804126485,0.07285579,124590.0,124580.0,0.16053941]
[1759804126728,0.15362955,124590.0,124580.0,0.42168858]
[1759804126958,0.15362955,124590.0,124580.0,0.38957941]
[1759804127182,0.08826206,124590.0,124580.0,0.38957941]
[1759804127619,0.09226206,124590.0,124580.0,0.38957941]
[1759804127838,0.09226206,124590.0,124580.0,0.39005109]
[1759804128708,0.09226206,124590.0,124580.0,0.40250052]
[1759804128947,0.08826206,124590.0,124580.0,0.40250052]
[1759804129163,0.09026206,124590.0,124580.0,0.39005109]
[1759804129381,0.09326206,124590.0,124580.0,0.39005109]
[1759804129778,0.01014,124590.0,124580.0,0.39005109]
[1759804129993,0.005,124590.0,124580.0,0.39005109]
[1759804130879,0.005,124590.0,124580.0,0.44511143]
[1759804131087,0.005,124590.0,124580.0,0.39005109]
[1759804134515,0.005,124590.0,124580.0,0.16101109]
[1759804134713,0.005,124590.0,124580.0,0.47341109]
[1759804134852,0.00599097,124590.0,124580.0,0.47341109]
[1759804136544,0.00599097,124590.0,124580.0,0.54043246]
[1759804137193,0.00599097,124590.0,124580.0,0.47341109]
[1759804137403,0.01113097,124590.0,124580.0,0.47341109]
[1759804137617,0.01113097,124590.0,124580.0,0.47337109]
[1759804137845,0.59185767,124590.0,124580.0,0.00047168]
[1759804138085,0.59185767,124590.0,124580.0,0.22892168]
[1759804138461,0.59185767,124590.0,124580.0,0.38946109]
[1759804141245,0.59185767,124590.0,124580.0,0.22892168]
[1759804141811,0.59185767,124590.0,124580.0,0.38946109]
[1759804142039,1.59746416,124590.0,124580.0,1.68e-06]
[1759804142257,0.96342633,124590.0,124580.0,1.68e-06]
[1759804142457,0.99559941,124590.0,124580.0,1.68e-06]
[1759804142987,1.15612593,124590.0,124580.0,1.68e-06]
[1759804143146,1.14117558,124590.0,124580.0,1.68e-06]
[1759804143352,1.12395285,124590.0,124580.0,1.68e-06]
[1759804143941,1.0235395,124590.0,124580.0,1.68e-06]
[1759804144166,1.2524595,124590.0,124580.0,1.68e-06]
[1759804145376,1.25245967,124590.0,124580.0,1.68e-06]
[1759804148539,1.26964389,124590.0,124580.0,1.68e-06]
[1759804148749,1.43017041,124590.0,124580.0,1.68e-06]
[1759804148959,1.26964389,124590.0,124580.0,1.68e-06]
[1759804149182,1.26948647,124590.0,124580.0,1.68e-06]
[1759804149529,1.43001299,124590.0,124580.0,1.68e-06]
[1759804150162,1.26948647,124590.0,124580.0,1.68e-06]
[1759804150543,1.43001299,124590.0,124580.0,1.68e-06]
[1759804151371,1.26948647,124590.0,124580.0,1.68e-06]
[1759804156013,1.43001299,124590.0,124580.0,1.68e-06]
[1759804157138,1.41278877,124590.0,124580.0,1.68e-06]
[1759804157280,1.25226225,124590.0,124580.0,1.68e-06]
[1759804159377,1.26948809,124590.0,124580.0,1.68e-06]
[1759804159590,1.43001461,124590.0,124580.0,1.68e-06]
[1759804160400,0.77204087,124590.0,124580.0,1.68e-06]
[1759804160620,1.26948809,124590.0,124580.0,1.68e-06]
[1759804161259,1.28444242,124590.0,124580.0,1.68e-06]
[1759804162469,0.5581152,124590.0,124580.0,1.68e-06]
[1759804162678,1.28436242,124590.0,124580.0,1.68e-06]
[1759804164565,1.26713658,124590.0,124580.0,1.68e-06]
[1759804164774,1.28437128,124590.0,124580.0,1.68e-06]
[1759804165561,1.4448978,124590.0,124580.0,1.68e-06]
[1759804165709,1.28437128,124590.0,124580.0,1.68e-06]
[1759804168296,1.4448978,124590.0,124580.0,1.68e-06]
[1759804168723,1.28437128,124590.0,124580.0,1.68e-06]
[1759804171771,1.28437128,124590.0,124580.0,0.16054109]
[1759804171772,0.55812406,124590.0,124580.0,0.16054109]
[1759804171994,0.69753756,124590.0,124580.0,0.16054109]
[1759804172189,0.11154286,124590.0,124580.0,0.16054109]
[1759804172426,0.09658853,124590.0,124580.0,0.16054109]
[1759804172819,0.09869853,124590.0,124580.0,0.16054109]
[1759804172957,0.10193747,124590.0,124580.0,0.16054109]
[1759804177283,0.10193234,124590.0,124580.0,0.16054109]
[1759804187671,1.5973533,124590.0,124580.0,1.68e-06]
[1759804187875,1.62957672,124590.0,124580.0,1.68e-06]
[1759804188285,1.71496297,124590.0,124580.0,1.68e-06]
[1759804188492,1.69998975,124590.0,124580.0,1.68e-06]
[1759804188713,1.71496272,124590.0,124580.0,1.68e-06]
[1759804189666,0.72006828,124590.0,124580.0,1.68e-06]
[1759804189864,1.71496272,124590.0,124580.0,1.68e-06]
[1759804190943,1.71495797,124590.0,124580.0,1.68e-06]
[1759804194463,0.72006353,124590.0,124580.0,1.68e-06]
[1759804194742,1.21751075,124590.0,124580.0,1.68e-06]
[1759804195482,1.05698423,124590.0,124580.0,1.68e-06]
[1759804196483,1.28557784,124590.0,124580.0,1.68e-06]
[1759804196682,1.44610436,124590.0,124580.0,1.68e-06]
[1759804197318,1.21750436,124590.0,124580.0,1.68e-06]
[1759804197520,1.44610436,124590.0,124580.0,1.68e-06]
[1759804199475,1.44610431,124590.0,124580.0,1.68e-06]
[1759804201513,1.05697779,124590.0,124580.0,1.68e-06]
[1759804201715,1.04201041,124590.0,124580.0,1.68e-06]
[1759804201918,0.75054299,124590.0,124580.0,1.68e-06]
[1759804202155,0.52198299,124590.0,124580.0,1.68e-06]
[1759804202329,0.12069007,124590.0,124580.0,0.16054109]
[1759804202594,0.09659674,124590.0,124580.0,0.16054109]
[1759804202932,0.08911303,124590.0,124580.0,0.16054109]
[1759804204806,0.09126303,124590.0,124580.0,0.16054109]
[1759804205140,0.09445303,124590.0,124580.0,0.16054109]
[1759804208051,0.10193848,124590.0,124580.0,0.16054109]
[1759804208250,0.44193848,124590.0,124580.0,0.16054109]
[1759804208619,0.10193848,124590.0,124580.0,0.16054109]
[1759804211072,0.10193848,124590.0,124580.0,1.68e-06]
[1759804211275,0.75984174,124590.0,124580.0,1.68e-06]
[1759804211655,0.75984196,124590.0,124580.0,1.68e-06]
[1759804212167,0.8531716,124590.0,124580.0,1.68e-06]
[1759804212857,1.1931716,124590.0,124580.0,1.68e-06]
[1759804213214,0.53526834,124590.0,124580.0,1.68e-06]
[1759804213421,0.55936167,124590.0,124580.0,1.68e-06]
[1759804214920,0.78784167,124590.0,124580.0,1.68e-06]
[1759804215369,0.60836819,124590.0,124580.0,1.68e-06]
[1759804216530,0.44784167,124590.0,124580.0,1.68e-06]
[1759804217003,0.19207834,124590.0,124580.0,1.68e-06]
[1759804217232,0.38830104,124590.0,124580.0,0.16054109]
[1759804217429,0.40860808,124590.0,124580.0,0.16054109]
[1759804217874,0.40860805,124590.0,124580.0,0.16054109]
[1759804218311,0.34749571,124590.0,124580.0,0.16054109]
[1759804218514,0.33024867,124590.0,124580.0,0.16054109]
[1759804218714,0.35434049,124590.0,124580.0,0.16054109]
[1759804218947,0.37158753,124590.0,124580.0,0.16054109]
[1759804221039,0.36637753,124590.0,124580.0,0.16054109]
[1759804221182,0.34228571,124590.0,124580.0,0.16054109]
[1759804221392,0.32707867,124590.0,124580.0,0.16054109]
[1759804221593,0.33013867,124590.0,124580.0,0.16054109]
[1759804222020,0.10169867,124590.0,124580.0,0.16054109]
[1759804222439,0.09659867,124590.0,124580.0,0.16054109]
[1759804223065,0.09863867,124590.0,124580.0,0.16054109]
[1759804223271,0.10169867,124590.0,124580.0,0.16054109]
[1759804224863,0.10170125,124590.0,124580.0,0.16054109]
[1759804226305,0.10170125,124590.0,124580.0,1.68e-06]
[1759804226512,0.75960451,124590.0,124580.0,1.68e-06]
[1759804226731,0.77685697,124590.0,124580.0,1.68e-06]
[1759804227638,0.8358265,124590.0,124580.0,1.68e-06]
[1759804228345,0.67529998,124590.0,124580.0,1.68e-06]
[1759804228756,0.69939331,124590.0,124580.0,1.68e-06]
[1759804230865,0.85991983,124590.0,124580.0,1.68e-06]
[1759804231174,0.71437228,124590.0,124580.0,1.68e-06]
[1759804231995,0.69939331,124590.0,124580.0,1.68e-06]
[1759804232645,0.69939452,124590.0,124580.0,1.68e-06]
[1759804233122,0.71437301,124590.0,124580.0,1.68e-06]
[1759804236219,0.94273301,124590.0,124580.0,1.68e-06]
[1759804236929,0.21699627,124590.0,124580.0,0.16054109]
[1759804237135,0.42810381,124590.0,124580.0,0.16054109]
[1759804237323,0.94273301,124590.0,124580.0,0.16054109]
[1759804238234,0.94273301,124590.0,124580.0,1.68e-06]
[1759804238407,0.71437301,124590.0,124580.0,0.16054109]
[1759804238613,0.44535627,124590.0,124580.0,0.16054109]
[1759804238828,0.94273301,124590.0,124580.0,0.16054109]
[1759804240203,0.71437301,124590.0,124580.0,0.16054109]
[1759804240413,0.21189627,124590.0,124580.0,0.19265013]
[1759804240627,0.38389199,124590.0,124580.0,0.16054109]
[1759804240828,0.38929199,124590.0,124580.0,0.16054109]
[1759804241066,0.3892949,124590.0,124580.0,0.16054109]
[1759804241283,0.40655713,124590.0,124580.0,1.68e-06]
[1759804241488,0.93851853,124590.0,124580.0,0.16054109]
[1759804241691,0.93843826,124590.0,124580.0,0.16054109]
[1759804242844,0.21274152,124590.0,124580.0,0.16054109]
[1759804243051,0.91577603,124590.0,124580.0,0.16054109]
[1759804243251,0.93303826,124590.0,124580.0,0.16054109]
[1759804243452,0.44106152,124590.0,124580.0,0.16054109]
[1759804244390,0.93843826,124590.0,124580.0,0.16054109]
[1759804244592,0.44106152,124590.0,124580.0,0.16054109]
[1759804247659,0.93843826,124590.0,124580.0,0.16054109]
[1759804247833,0.44106152,124590.0,124580.0,0.16054109]
[1759804248154,0.93843826,124590.0,124580.0,0.16054109]
[1759804248287,0.21274152,124590.0,124580.0,0.16054109]
[1759804248485,0.18498796,124590.0,124580.0,0.19265013]
[1759804248697,0.3248051,124590.0,124580.0,0.16054109]
[1759804249498,0.3267651,124590.0,124580.0,0.16054109]
[1759804249920,0.3299751,124590.0,124580.0,0.16054109]
[1759804250924,0.1016951,124590.0,124580.0,0.16054109]
[1759804251600,0.0984851,124590.0,124580.0,0.16054109]
[1759804253830,0.1016951,124590.0,124580.0,0.16054109]
[1759804258164,0.1016951,124590.0,124580.0,0.16053941]
[1759804259693,0.09420276,124590.0,124580.0,0.16053941]
[1759804260694,0.1016968,124590.0,124580.0,0.16053941]
[1759804262577,0.59907354,124590.0,124570.0,0.36817562]
[1759804262781,0.51496051,124590.0,124580.0,0.16053941]
[1759804262990,0.62217397,124590.0,124580.0,0.16053941]
[1759804263210,0.81448223,124590.0,124570.0,0.14045301]
[1759804263423,0.00321,124580.0,124570.0,0.14045301]
[1759804263631,0.00517,124580.0,124570.0,0.14045301]
[1759804265087,0.00817,124580.0,124570.0,0.14045301]
[1759804265865,0.00496,124580.0,124570.0,0.14045301]
[1759804266297,0.003,124580.0,124570.0,0.14045301]
[1759804267774,0.08612206,124580.0,124570.0,0.14045301]
[1759804267993,0.0869149,124580.0,124570.0,0.14045301]
[1759804269186,0.0888749,124580.0,124570.0,0.14045301]
[1759804269390,0.0920849,124580.0,124570.0,0.14045301]
[1759804274666,0.0888749,124580.0,124570.0,0.14045301]
[1759804275532,0.0919849,124580.0,124570.0,0.14045301]
[1759804291423,0.0869149,124580.0,124570.0,0.14045301]
[1759804293656,0.00379284,124580.0,124570.0,0.14045301]
[1759804294548,0.00379284,124580.0,124570.0,0.16454178]
[1759804294766,0.00379284,124580.0,124570.0,0.22066727]
[1759804295191,0.00379284,124580.0,124570.0,0.16454178]
[1759804300448,0.00379284,124580.0,124570.0,0.47598178]
[1759804300616,0.00379284,124580.0,124570.0,0.16454178]
[1759804300813,0.00379284,124580.0,124570.0,0.47598178]
[1759804302307,0.00379284,124580.0,124570.0,0.16454178]
[1759804302529,0.00379284,124580.0,124570.0,0.47598178]
[1759804302890,0.00379284,124580.0,124570.0,0.16454178]
[1759804303106,0.00379284,124580.0,124570.0,0.39250178]
[1759804303323,0.00379284,124580.0,124570.0,0.47594178]
[1759804309959,0.00379284,124580.0,124570.0,0.54039527]
[1759804310741,0.00379284,124580.0,124570.0,0.47594178]
[1759804316570,0.00379284,124580.0,124570.0,0.16454178]
[1759804316778,0.00379284,124580.0,124570.0,0.47586178]
[1759804317409,0.00379284,124580.0,124570.0,0.16454178]
[1759804317567,0.00379284,124580.0,124570.0,0.47586178]
[1759804317974,0.00586284,124580.0,124570.0,0.47586178]
[1759804318182,0.00908284,124580.0,124570.0,0.47586178]
[1759804318399,0.00379284,124580.0,124570.0,0.47586178]
[1759804320072,0.00586284,124580.0,124570.0,0.47586178]
[1759804320285,0.00908284,124580.0,124570.0,0.47586178]
[1759804320485,0.00379284,124580.0,124570.0,0.47586178]
[1759804321127,0.00379284,124580.0,124570.0,0.54030727]
[1759804322930,0.00379284,124580.0,124570.0,0.88030727]
[1759804325899,0.00379284,124580.0,124570.0,0.54030727]
[1759804326326,0.00379284,124580.0,124570.0,0.88030727]
[1759804329878,0.00379284,124580.0,124570.0,0.56898727]
[1759804330117,0.00379284,124580.0,124570.0,0.79682727]
[1759804330323,0.00298367,124580.0,124570.0,0.88026727]
[1759804334790,0.00298367,124580.0,124570.0,0.56898727]
[1759804334995,0.00298367,124580.0,124570.0,0.88022727]
[1759804340808,0.00822367,124580.0,124570.0,0.88022727]
[1759804341037,0.00298367,124580.0,124570.0,0.88022727]
[1759804352656,0.00298367,124580.0,124570.0,0.54022727]
[1759804354377,0.00298367,124580.0,124570.0,0.88022727]
[1759804356908,0.00055286,124600.0,124590.0,0.16052652]
[1759804357062,0.00055286,124600.0,124590.0,0.42031195]
[1759804357453,0.00094916,124600.0,124590.0,0.42031195]
[1759804357657,0.00300916,124600.0,124590.0,0.44439737]
[1759804357916,0.00596916,124600.0,124590.0,0.44439737]
[1759804358115,0.00094916,124600.0,124590.0,0.44439737]
[1759804358293,0.00694916,124600.0,124590.0,0.44439737]
[1759804358615,0.00994916,124600.0,124590.0,0.44539737]
[1759804360161,0.00994916,124600.0,124590.0,0.42131195]
[1759804360391,0.00994916,124600.0,124590.0,0.19363195]
[1759804360596,0.00994916,124600.0,124590.0,0.50475195]
[1759804360747,0.01496916,124600.0,124590.0,0.50475195]
[1759804362369,0.01496916,124600.0,124590.0,0.19363195]
[1759804362490,0.01496916,124600.0,124590.0,0.50471195]
[1759804362700,0.00994916,124600.0,124590.0,0.50471195]
[1759804363803,0.00994916,124600.0,124590.0,0.19363195]
[1759804364044,0.00994916,124600.0,124590.0,0.50471195]
[1759804365903,1e-08,124600.0,124590.0,0.86879484]
[1759804366137,1e-08,124600.0,124590.0,0.55771484]
[1759804366333,1e-08,124600.0,124590.0,0.86879484]
[1759804366919,1e-08,124600.0,124590.0,0.87079484]
[1759804367472,0.0004,124610.0,124600.0,0.16051364]
[1759804367674,0.0004,124610.0,124600.0,0.24051044]
[1759804367840,0.00059812,124610.0,124600.0,0.24051044]
[1759804368052,0.00059812,124610.0,124600.0,0.24372133]
[1759804368675,0.00159812,124610.0,124600.0,0.24372133]
[1759804369479,0.00159812,124610.0,124600.0,0.24872133]
[1759804370697,0.00059812,124610.0,124600.0,0.24872133]
[1759804370876,0.00059812,124610.0,124600.0,0.24372133]
[1759804371083,0.00059812,124610.0,124600.0,0.25172133]
[1759804380908,0.00059812,124610.0,124600.0,0.39928453]
[1759804381112,0.00059812,124610.0,124600.0,0.48268453]
[1759804382091,0.00255812,124610.0,124600.0,0.48268453]
[1759804382291,0.00561812,124610.0,124600.0,0.17172453]
[1759804382564,0.00059812,124610.0,124600.0,0.48268453]
[1759804382799,0.00059812,124610.0,124600.0,0.5502697]
[1759804383423,0.00059812,124610.0,124600.0,0.4668297]
[1759804383604,0.00255812,124610.0,124600.0,0.5502297]
[1759804383753,0.00561812,124610.0,124600.0,0.5502297]
[1759804384132,0.00059812,124610.0,124600.0,0.5502297]
[1759804384318,0.00561812,124610.0,124600.0,0.2393097]
[1759804384525,0.00561812,124610.0,124600.0,0.5502297]
[1759804384729,0.00561812,124610.0,124600.0,0.2393097]
[1759804384963,0.00561812,124610.0,124600.0,0.17172453]
[1759804385170,0.00561812,124610.0,124600.0,0.25512453]
[1759804385388,0.00561812,124610.0,124600.0,0.47943364]
[1759804385921,0.00561812,124610.0,124600.0,0.47143364]
[1759804386120,0.01516363,124610.0,124600.0,0.47643364]
[1759804386345,0.00561812,124610.0,124600.0,0.47643364]
[1759804386963,0.00661812,124610.0,124600.0,0.47643364]
[1759804387542,0.00661812,124610.0,124600.0,0.39303364]
[1759804388859,0.08974018,124610.0,124600.0,0.39303364]
[1759804397256,0.08974018,124610.0,124600.0,0.38844484]
[1759804399835,0.08974018,124610.0,124600.0,0.16092484]
[1759804400003,0.08974018,124610.0,124600.0,0.38840484]
[1759804405780,0.08974018,124610.0,124600.0,0.16092484]
[1759804405932,0.09723728,124610.0,124600.0,0.38836484]
[1759804406155,0.12132458,124610.0,124600.0,0.38836484]
[1759804406343,0.12132405,124610.0,124600.0,0.16092484]
[1759804406548,0.12132405,124610.0,124600.0,0.38836484]
[1759804407777,0.18277564,124610.0,124600.0,0.38836484]
[1759804418557,0.08472018,124610.0,124600.0,0.38836484]
[1759804420444,0.00159812,124610.0,124600.0,0.38836484]
[1759804421261,0.00059812,124610.0,124600.0,0.38836484]
[1759804421455,0.00059812,124610.0,124600.0,0.38895364]
[1759804421872,0.00059812,124610.0,124600.0,0.39195364]
[1759804423572,0.00059812,124610.0,124600.0,0.41603618]
[1759804430433,0.00059812,124610.0,124600.0,0.41595618]
[1759804430658,0.00059812,124610.0,124600.0,0.49935618]
[1759804433577,0.00059812,124610.0,124600.0,0.18859618]
[1759804433784,0.00563812,124610.0,124600.0,0.18859618]
[1759804434008,0.00563812,124610.0,124600.0,0.49931618]
[1759804434359,0.00059812,124610.0,124600.0,0.49931618]
[1759804435480,0.00266812,124610.0,124600.0,0.49931618]
[1759804435673,0.00563812,124610.0,124600.0,0.49931618]
[1759804436076,0.00266812,124610.0,124600.0,0.49931618]
[1759804436471,0.00059812,124610.0,124600.0,0.49931618]
[1759804437073,0.00059812,124610.0,124600.0,0.39183364]
[1759804437439,0.00059812,124610.0,124600.0,0.47523364]
[1759804438771,0.00266812,124610.0,124600.0,0.47523364]
[1759804438970,0.00563812,124610.0,124600.0,0.47523364]
[1759804439424,0.00059812,124610.0,124600.0,0.47523364]
[1759804441840,0.00059812,124610.0,124600.0,0.16451364]
[1759804442042,0.00563812,124610.0,124600.0,0.16451364]
[1759804442324,0.00563812,124610.0,124600.0,0.39179364]
[1759804443069,0.00563812,124610.0,124600.0,0.16451364]
[1759804443303,0.00563812,124610.0,124600.0,0.39179364]
[1759804443922,0.00563812,124610.0,124600.0,0.39079364]
[1759804444122,0.00563812,124610.0,124600.0,0.38779364]
[1759804444430,0.00563812,124610.0,124600.0,0.38879364]
[1759804445386,0.08876018,124610.0,124600.0,0.16051364]
[1759804445588,0.59477477,124610.0,124600.0,0.16151364]
[1759804445839,0.59577477,124610.0,124600.0,0.38879364]
[1759804446006,0.08976018,124610.0,124600.0,0.16151364]
[1759804446209,0.08976018,124610.0,124600.0,0.38879364]
[1759804446568,0.09726337,124610.0,124600.0,0.38879364]
[1759804446702,0.25776413,124610.0,124600.0,0.16151364]
[1759804446905,1.0948957,124610.0,124600.0,0.16151364]
[1759804447930,1.15444406,124610.0,124600.0,0.16151364]
[1759804448956,1.15444264,124610.0,124600.0,0.16151364]
[1759804449179,1.15444264,124610.0,124600.0,0.001]
[1759804449554,1.19580677,124610.0,124600.0,0.001]
[1759804450296,1.21079606,124610.0,124600.0,0.001]
[1759804451379,1.20979606,124610.0,124600.0,0.001]
[1759804451794,1.21279606,124610.0,124600.0,0.001]
[1759804451968,0.50051364,124600.0,124590.0,0.16106132]
[1759804452185,1.08373727,124600.0,124590.0,0.16106132]
[1759804452385,1.08580727,124600.0,124590.0,0.00053525]
[1759804452590,1.08580727,124600.0,124590.0,0.16106177]
[1759804453123,0.8159557,124600.0,124590.0,0.00053525]
[1759804453450,1.32357381,124600.0,124590.0,0.00053525]
[1759804453661,1.34082006,124600.0,124590.0,0.00053525]
[1759804454041,1.35579195,124600.0,124590.0,0.00053525]
[1759804454292,1.85292352,124600.0,124590.0,0.00053525]
[1759804454471,1.37737527,124600.0,124590.0,0.00053525]
[1759804454677,1.37537527,124600.0,124590.0,0.00053525]
[1759804455048,1.37837527,124600.0,124590.0,0.00053525]
[1759804455494,1.37437527,124600.0,124590.0,0.00053525]
[1759804455674,1.37737527,124600.0,124590.0,0.00053525]
[1759804455821,1.37937527,124600.0,124590.0,0.00153525]
[1759804456248,1.38237527,124600.0,124590.0,0.00153525]
[1759804456654,1.17918959,124600.0,124590.0,0.00153525]
[1759804456858,1.40646959,124600.0,124590.0,0.00153525]
[1759804457063,1.9043129,124600.0,124590.0,0.00153525]
[1759804457734,1.6770329,124600.0,124590.0,0.00153525]
[1759804457934,1.9043529,124600.0,124590.0,0.00153525]
[1759804461736,2.40184034,124600.0,124590.0,0.00153525]
[1759804462139,2.43060562,124600.0,124590.0,0.00153525]
[1759804463769,1.93311818,124600.0,124590.0,0.00153525]
[1759804463971,0.9381433,124600.0,124590.0,0.00153525]
[1759804464204,1.91153486,124600.0,124590.0,0.00153525]
[1759804465579,2.35533486,124600.0,124590.0,0.00153525]
[1759804467264,2.39820811,124600.0,124590.0,0.00153525]
[1759804468472,2.36944283,124600.0,124590.0,0.00153525]
[1759804469688,2.36943692,124600.0,124590.0,0.00153525]
[1759804471539,2.14211692,124600.0,124590.0,0.00153525]
[1759804471679,2.36943692,124600.0,124590.0,0.00153525]
[1759804472338,0.99802685,124580.0,124570.0,0.16905663]
[1759804472535,1.3697286,124580.0,124570.0,0.16905663]
[1759804472766,1.3747186,124580.0,124570.0,0.16905663]
[1759804472971,1.39881304,124580.0,124570.0,0.16905663]
[1759804473210,1.39881304,124580.0,124570.0,0.00047739]
[1759804473420,1.92504837,124580.0,124570.0,0.00047739]
[1759804473631,1.92804837,124580.0,124570.0,0.00047739]
[1759804473833,0.65803973,124570.0,124560.0,0.16859238]
[1759804474038,0.80242841,124570.0,124560.0,0.16895406]
[1759804474238,0.80741841,124570.0,124560.0,0.16895406]
[1759804474411,0.80741841,124570.0,124560.0,0.00036168]
[1759804474740,1.15459845,124570.0,124560.0,0.00036168]
[1759804474922,1.18069482,124570.0,124560.0,0.00036168]
[1759804475132,1.18169482,124570.0,124560.0,0.00036168]
[1759804475434,1.22481666,124570.0,124560.0,0.00036168]
[1759804475660,1.22481666,124570.0,124560.0,0.16092686]
[1759804475661,1.40901482,124570.0,124560.0,0.16092686]
[1759804476185,0.95464922,124570.0,124560.0,0.00036168]
[1759804476388,1.45213666,124570.0,124560.0,0.00036168]
[1759804476603,1.22481666,124570.0,124560.0,0.00036168]
[1759804476803,1.45213666,124570.0,124560.0,0.00036168]
[1759804477130,1.5122354,124570.0,124560.0,0.00036168]
[1759804477488,1.48348751,124570.0,124560.0,0.00036168]
[1759804477911,1.46624126,124570.0,124560.0,0.00036168]
[1759804478130,0.98603138,124570.0,124560.0,0.16092686]
[1759804478331,1.48351882,124570.0,124560.0,0.16092686]
[1759804480767,1.25619882,124570.0,124560.0,0.16092686]
[1759804481067,1.48351882,124570.0,124560.0,0.16092686]
[1759804482402,0.75871138,124570.0,124560.0,0.16092686]
[1759804482526,1.48351882,124570.0,124560.0,0.16092686]
[1759804483328,1.44039698,124570.0,124560.0,0.16152151]
[1759804483523,1.21012698,124570.0,124560.0,0.16152151]
[1759804483732,0.98113894,124570.0,124560.0,0.16152151]
[1759804484151,0.98326894,124570.0,124560.0,0.16152151]
[1759804484384,0.98626894,124570.0,124560.0,0.16152151]
[1759804485662,0.98629518,124570.0,124560.0,0.16152151]
[1759804486063,0.75904375,124570.0,124560.0,0.16152151]
[1759804486284,0.98632375,124570.0,124560.0,0.16152151]
[1759804490349,1.01514894,124570.0,124560.0,0.16152151]
[1759804490762,0.85459665,124570.0,124560.0,0.16152151]
[1759804491004,1.01519088,124570.0,124560.0,0.16152151]
[1759804491211,0.97192904,124570.0,124560.0,0.16152151]
[1759804491390,0.97192901,124570.0,124560.0,0.16152151]
[1759804493158,0.78728035,124570.0,124560.0,0.16152151]
[1759804493368,0.80890043,124570.0,124560.0,0.16152151]
[1759804493554,0.96945272,124570.0,124560.0,0.16152151]
[1759804494189,0.99354909,124570.0,124560.0,0.16152151]
[1759804494372,0.96945272,124570.0,124560.0,0.16152151]
[1759804494583,0.58162043,124570.0,124560.0,0.16152151]
[1759804494889,0.96945272,124570.0,124560.0,0.16152151]
[1759804496356,0.94062753,124570.0,124560.0,0.16152151]
[1759804496935,0.96945272,124570.0,124560.0,0.16152151]
[1759804497329,0.94062753,124570.0,124560.0,0.16152151]
[1759804500269,0.94062753,124570.0,124560.0,0.00095633]
[1759804500473,1.43811497,124570.0,124560.0,0.00095633]
[1759804500716,0.1605835,124550.0,124530.0,0.16053646]
[1759804500990,0.31542206,124540.0,124530.0,0.16090008]
[1759804501154,0.82351979,124540.0,124530.0,0.00036362]
[1759804501441,1.37495232,124540.0,124530.0,0.00036362]
[1759804501643,0.87746488,124540.0,124530.0,0.00036362]
[1759804501892,1.37495232,124540.0,124530.0,0.00036362]
[1759804502116,0.87746488,124540.0,124530.0,0.00036362]
[1759804502309,1.37495232,124540.0,124530.0,0.00036362]
[1759804503220,1.37495232,124540.0,124530.0,0.00636362]
[1759804503449,1.35332796,124540.0,124530.0,0.00036362]
[1759804503651,1.35532796,124540.0,124530.0,0.00036362]
[1759804504089,1.37695232,124540.0,124530.0,0.00036362]
[1759804504509,1.37895232,124540.0,124530.0,0.00036362]
[1759804505335,1.87643976,124540.0,124530.0,0.00036362]
[1759804505545,1.90054398,124540.0,124530.0,0.00036362]
[1759804505944,1.92937646,124540.0,124530.0,0.00036362]
[1759804506462,1.95952836,124540.0,124530.0,0.00036362]
[1759804506669,2.43539144,124540.0,124530.0,0.00036362]
[1759804506868,1.95233092,124540.0,124530.0,0.00095848]
[1759804507384,2.44774584,124540.0,124530.0,0.00095848]
[1759804507590,0.50065547,124490.0,124480.0,0.06536749]
[1759804507794,0.81105753,124490.0,124480.0,0.06548069]
[1759804507970,0.81308753,124490.0,124480.0,0.06548069]
[1759804508124,0.58879753,124490.0,124480.0,0.0001132]
[1759804508326,0.61290994,124490.0,124480.0,0.0001132]
[1759804508741,0.84018994,124490.0,124480.0,0.0001132]
[1759804508963,0.84018994,124490.0,124480.0,0.16078158]
[1759804509361,0.84018994,124490.0,124480.0,0.0001132]
[1759804509586,0.84912525,124490.0,124480.0,0.0001132]
[1759804509780,0.90958188,124490.0,124480.0,0.0001132]
[1759804509985,0.90064657,124490.0,124480.0,0.0001132]
[1759804510570,0.90264657,124490.0,124480.0,0.0001132]
[1759804510922,0.67536657,124490.0,124480.0,0.0001132]
[1759804511137,0.90264657,124490.0,124480.0,0.0001132]
[1759804511673,1.40013401,124490.0,124480.0,0.0001132]
[1759804512083,1.41730923,124490.0,124480.0,0.0001132]
[1759804512321,1.19002923,124490.0,124480.0,0.0001132]
[1759804512485,1.50082923,124490.0,124480.0,0.0001132]
[1759804513117,1.19002923,124490.0,124480.0,0.00110515]
[1759804513319,1.50082182,124490.0,124480.0,0.00110515]
[1759804513707,0.91985438,124490.0,124480.0,0.00110515]
[1759804514071,1.50082182,124490.0,124480.0,0.00110515]
[1759804514617,1.41734182,124490.0,124480.0,0.00110515]
[1759804514795,1.50082182,124490.0,124480.0,0.00110515]
[1759804515006,1.51571392,124490.0,124480.0,0.00110515]
[1759804515426,1.43223392,124490.0,124480.0,0.00110515]
[1759804515676,1.51571392,124490.0,124480.0,0.00110515]
[1759804516245,1.51570842,124490.0,124480.0,0.00110515]
[1759804516669,1.01822098,124490.0,124480.0,0.00110515]
[1759804516873,1.51570842,124490.0,124480.0,0.00110515]
[1759804517082,1.01822098,124490.0,124480.0,0.00110515]
[1759804517358,1.03968074,124490.0,124480.0,0.00110515]
[1759804518420,1.53788833,124490.0,124480.0,0.00110515]
[1759804519205,1.03968074,124490.0,124480.0,0.00110515]
[1759804519410,1.53788833,124490.0,124480.0,0.00110515]
[1759804519812,1.07729815,124490.0,124480.0,0.00110515]
[1759804521270,1.05583839,124490.0,124480.0,0.00110515]
[1759804522459,1.04693472,124490.0,124480.0,0.00110515]
[1759804523274,1.09019412,124490.0,124480.0,0.00110515]
[1759804524517,1.06148038,124490.0,124480.0,0.00110515]
[1759804525705,0.75068038,124490.0,124480.0,0.00110515]
[1759804526020,1.55976797,124490.0,124480.0,0.00110515]
[1759804526269,1.06156038,124490.0,124480.0,0.00110515]
[1759804526470,1.01830098,124490.0,124480.0,0.00110515]
[1759804527202,1.02575799,124490.0,124480.0,0.00110515]
[1759804527901,1.02578631,124490.0,124480.0,0.00110515]
[1759804528075,1.03474537,124490.0,124480.0,0.00110515]
[1759804528282,1.0919208,124490.0,124480.0,0.00110515]
[1759804528482,0.50066838,124480.0,124470.0,0.0002]